bitfinex-derivatives/quotes_BTCF0:USTF0_20251130
["timestamp","ask_amount","ask_price","bid_price","bid_amount"]
[1764504702609,0.04368444,91229.0,91228.0,0.0438]
[1764504702911,0.00016444,91229.0,91228.0,0.0438]
[1764504704007,0.00116444,91229.0,91228.0,0.0438]
[1764504706110,0.00116444,91229.0,91228.0,0.142357]
[1764504708206,0.00116444,91229.0,91228.0,0.14234423]
[1764504709118,0.00116444,91229.0,91228.0,0.0438]
[1764504712011,4.44e-06,91229.0,91228.0,0.0438]
[1764504712211,0.02514,91236.0,91235.0,0.05527]
[1764504712424,0.02514,91236.0,91235.0,0.15377225]
[1764504712617,0.02166399,91246.0,91245.0,0.04379]
[1764504712818,0.02166399,91246.0,91245.0,0.1225903]
[1764504713021,0.04446399,91246.0,91245.0,0.1225903]
[1764504714016,0.04546399,91246.0,91245.0,0.1352303]
[1764504714218,0.02266399,91246.0,91245.0,0.1352303]
[1764504714514,0.00127399,91246.0,91245.0,0.05643]
[1764504715010,0.00427399,91246.0,91245.0,0.05643]
[1764504716221,0.00427399,91246.0,91245.0,0.06734345]
[1764504717625,0.00427399,91246.0,91245.0,0.16584383]
[1764504717819,0.00427399,91246.0,91245.0,0.06734345]
[1764504718624,0.00127399,91246.0,91245.0,0.06834345]
[1764504718924,0.00127399,91246.0,91245.0,0.06734345]
[1764504719224,0.00027399,91246.0,91245.0,0.06834345]
[1764504723214,0.02434,91254.0,91253.0,0.04379]
[1764504723623,0.00016444,91255.0,91254.0,0.04379]
[1764504724618,0.04435444,91255.0,91254.0,0.04379]
[1764504724823,0.04435444,91255.0,91254.0,0.04479]
[1764504726728,0.05710444,91255.0,91254.0,0.04479]
[1764504726929,0.05710444,91255.0,91254.0,0.001]
[1764504727318,0.05710444,91255.0,91254.0,0.02343]
[1764504727925,0.05710444,91255.0,91254.0,0.001]
[1764504728328,0.05710444,91255.0,91254.0,0.05995219]
[1764504728726,0.05710444,91255.0,91254.0,0.001]
[1764504732337,0.04435444,91255.0,91254.0,0.04479]
[1764504732526,0.00016444,91255.0,91254.0,0.04479]
[1764504732833,0.04435444,91255.0,91254.0,0.04479]
[1764504733135,0.05710444,91255.0,91254.0,0.04479]
[1764504737636,0.05710444,91255.0,91254.0,0.02343]
[1764504738437,0.05710444,91255.0,91254.0,0.001]
[1764504739029,0.05710444,91255.0,91254.0,0.02377]
[1764504739224,0.05710444,91255.0,91254.0,0.001]
[1764504739840,0.05710444,91255.0,91254.0,0.02377]
[1764504741133,0.05710444,91255.0,91254.0,0.04505]
[1764504743346,0.05710444,91255.0,91254.0,0.14342706]
[1764504746349,0.05710444,91255.0,91254.0,0.04505]
[1764504751247,0.04435444,91255.0,91254.0,0.04505]
[1764504755750,0.02155444,91255.0,91254.0,0.04505]
[1764504756455,0.00016444,91255.0,91254.0,0.04505]
[1764504762158,0.04491444,91255.0,91254.0,0.04505]
[1764504762861,0.02182444,91255.0,91254.0,0.04505]
[1764504763863,0.04491444,91255.0,91254.0,0.04505]
[1764504764359,0.00016444,91255.0,91254.0,0.04505]
[1764504774055,0.00016444,91255.0,91254.0,0.18243809]
[1764504774258,0.00016444,91255.0,91254.0,0.04505]
[1764504776969,0.00016444,91255.0,91254.0,0.04705]
[1764504778673,0.00016444,91255.0,91254.0,0.18498453]
[1764504779178,0.00016444,91255.0,91254.0,0.04705]
[1764504779369,0.00016444,91255.0,91254.0,0.10755]
[1764504780574,0.0327,91260.0,91259.0,0.04425]
[1764504780981,0.0327,91260.0,91256.0,0.15102353]
[1764504780982,0.05862,91280.0,91279.0,0.04425]
[1764504781879,0.04565,91280.0,91279.0,0.04425]
[1764504782173,0.04565,91280.0,91279.0,0.1230679]
[1764504782374,0.05862,91280.0,91279.0,0.1230679]
[1764504782677,0.04565,91280.0,91279.0,0.1230679]
[1764504782872,0.04565,91280.0,91279.0,0.04425]
[1764504783175,0.05065,91280.0,91279.0,0.14266437]
[1764504783474,0.02797,91280.0,91279.0,0.14266437]
[1764504783671,0.05065,91280.0,91279.0,0.14266437]
[1764504783980,0.05165,91280.0,91279.0,0.14266437]
[1764504784177,0.006,91280.0,91279.0,0.14266437]
[1764504784378,0.001,91280.0,91279.0,0.04525]
[1764504784575,0.02653,91283.0,91282.0,0.04425]
[1764504785078,0.0495,91283.0,91282.0,0.04425]
[1764504785379,0.07218,91283.0,91282.0,0.04425]
[1764504786171,0.07218,91283.0,91282.0,0.02281]
[1764504786471,0.07218,91283.0,91282.0,0.04425]
[1764504786874,0.04565,91283.0,91282.0,0.04425]
[1764504789571,0.02297,91283.0,91282.0,0.04425]
[1764504789878,0.04565,91283.0,91282.0,0.04425]
[1764504790778,0.02932,91285.0,91282.0,0.04425]
[1764504790981,0.02932,91285.0,91284.0,0.04425]
[1764504792775,0.06123,91285.0,91282.0,0.09841437]
[1764504792977,0.01297,91280.0,91279.0,0.10141598]
[1764504793282,0.05862,91280.0,91279.0,0.12285598]
[1764504793976,0.04565,91280.0,91279.0,0.12285598]
[1764504794186,0.04565,91280.0,91279.0,0.04525]
[1764504794978,0.04565,91280.0,91279.0,0.001]
[1764504796976,0.04608,91273.0,91272.0,0.07861459]
[1764504797879,0.05935,91272.0,91271.0,0.07861459]
[1764504799677,0.05935,91272.0,91271.0,0.08161459]
[1764504800079,0.05935,91272.0,91271.0,0.12689459]
[1764504801175,0.05935,91272.0,91271.0,0.003]
[1764504801886,0.04608,91271.0,91270.0,0.00016433]
[1764504803181,0.04608,91271.0,91270.0,0.00316433]
[1764504805386,0.04608,91271.0,91270.0,0.00016433]
[1764504808682,0.04608,91271.0,91270.0,0.07886819]
[1764504809289,0.04608,91271.0,91270.0,0.12387819]
[1764504811690,0.04608,91271.0,91270.0,0.07886819]
[1764504812088,0.04608,91271.0,91270.0,0.00016433]
[1764504813893,0.04608,91271.0,91270.0,0.02141433]
[1764504815794,0.04608,91271.0,91270.0,0.00016433]
[1764504816186,0.04608,91271.0,91270.0,0.02141433]
[1764504816494,0.04608,91271.0,91270.0,0.00016433]
[1764504817987,0.04608,91271.0,91270.0,0.04310433]
[1764504825299,0.04608,91271.0,91270.0,0.1415187]
[1764504826196,0.04608,91271.0,91270.0,0.04310433]
[1764504834294,0.04608,91271.0,91270.0,0.00016433]
[1764504834697,0.04608,91271.0,91270.0,0.02151433]
[1764504834907,0.04608,91271.0,91270.0,0.04311433]
[1764504835601,0.0804,91271.0,91270.0,0.04311433]
[1764504842899,0.05723,91271.0,91270.0,0.04311433]
[1764504843106,0.08049,91271.0,91270.0,0.04311433]
[1764504848808,0.05723,91271.0,91270.0,0.04311433]
[1764504848995,0.03432,91271.0,91270.0,0.04311433]
[1764504850210,0.05649,91271.0,91270.0,0.04311433]
[1764504850712,0.07975,91271.0,91270.0,0.04311433]
[1764504853807,0.07975,91271.0,91270.0,0.04411433]
[1764504854008,0.08075,91271.0,91270.0,0.04911433]
[1764504854513,0.07975,91271.0,91270.0,0.04311433]
[1764504854708,0.07975,91271.0,91270.0,0.04611433]
[1764504855415,0.07975,91271.0,91270.0,0.04711433]
[1764504856105,0.08075,91271.0,91270.0,0.04911433]
[1764504856714,0.07975,91271.0,91270.0,0.04711433]
[1764504856915,0.07975,91271.0,91270.0,0.04611433]
[1764504857516,0.08075,91271.0,91270.0,0.04811433]
[1764504857816,0.08075,91271.0,91270.0,0.04911433]
[1764504858113,0.08075,91271.0,91270.0,0.00616433]
[1764504858311,0.08075,91271.0,91270.0,0.00516433]
[1764504858516,0.08075,91271.0,91270.0,0.02915433]
[1764504858919,0.07975,91271.0,91270.0,0.02715433]
[1764504859617,0.07975,91271.0,91270.0,0.02915433]
[1764504859817,0.07975,91271.0,91270.0,0.05230433]
[1764504860114,0.07975,91271.0,91270.0,0.05030433]
[1764504860818,0.07975,91271.0,91270.0,0.05230433]
[1764504862208,0.07975,91271.0,91270.0,0.05030433]
[1764504863214,0.07975,91271.0,91270.0,0.04630433]
[1764504863421,0.07975,91271.0,91270.0,0.05130433]
[1764504863814,0.07975,91271.0,91270.0,0.04930433]
[1764504864718,0.07975,91271.0,91270.0,0.05030433]
[1764504865219,0.05649,91271.0,91270.0,0.05030433]
[1764504865415,0.05649,91271.0,91270.0,0.15086998]
[1764504865807,0.05649,91271.0,91270.0,0.14986998]
[1764504866011,0.05649,91271.0,91270.0,0.14786998]
[1764504866215,0.03432,91271.0,91270.0,0.14786998]
[1764504866612,0.03532,91271.0,91270.0,0.14986998]
[1764504866915,0.03532,91271.0,91270.0,0.15086998]
[1764504867221,0.05702,91271.0,91270.0,0.15086998]
[1764504868021,0.03532,91271.0,91270.0,0.05230433]
[1764504869818,0.03532,91271.0,91270.0,0.15227583]
[1764504870022,0.01346,91296.0,91285.0,0.03794]
[1764504870524,0.02197387,91286.0,91285.0,0.12754885]
[1764504870827,0.04343387,91286.0,91285.0,0.12754885]
[1764504871529,0.04343387,91286.0,91285.0,0.12854885]
[1764504873821,0.04343387,91286.0,91285.0,0.22693521]
[1764504874724,0.00027387,91286.0,91285.0,0.22693521]
[1764504875021,0.00027387,91286.0,91285.0,0.12854885]
[1764504875218,0.04343387,91286.0,91285.0,0.12854885]
[1764504878824,0.04343387,91286.0,91285.0,0.2268618]
[1764504880430,0.04343387,91286.0,91285.0,0.12854885]
[1764504881325,0.04343387,91286.0,91285.0,0.10957885]
[1764504881528,0.04343387,91286.0,91285.0,0.12822885]
[1764504886633,0.04343387,91286.0,91285.0,0.09060885]
[1764504886935,0.04343387,91286.0,91285.0,0.001]
[1764504891633,0.06035,91276.0,91275.0,0.09831295]
[1764504891833,0.06035,91272.0,91271.0,0.13761295]
[1764504892531,0.06035,91272.0,91271.0,0.09831295]
[1764504893335,0.06035,91272.0,91271.0,0.11796295]
[1764504894234,0.06035,91272.0,91271.0,0.0433]
[1764504895825,0.06035,91276.0,91275.0,0.0393]
[1764504897038,0.06035,91276.0,91275.0,0.0433]
[1764504901532,0.06035,91276.0,91275.0,0.004]
[1764504902736,0.06035,91276.0,91275.0,0.01965]
[1764504902941,0.06035,91276.0,91275.0,0.0433]
[1764504903347,0.06035,91276.0,91275.0,0.0393]
[1764504903642,0.06035,91276.0,91275.0,0.0433]
[1764504904449,0.06035,91276.0,91275.0,0.0393]
[1764504904645,0.06035,91276.0,91275.0,0.0433]
[1764504905151,0.06035,91276.0,91275.0,0.004]
[1764504905350,0.06035,91276.0,91275.0,0.02365]
[1764504905649,0.06035,91276.0,91275.0,0.0433]
[1764504906550,0.06035,91276.0,91275.0,0.0393]
[1764504906745,0.06035,91276.0,91275.0,0.0433]
[1764504908053,0.06035,91276.0,91275.0,0.004]
[1764504909355,0.06035,91276.0,91275.0,0.0393]
[1764504909556,0.06035,91276.0,91275.0,0.0433]
[1764504910054,0.06035,91276.0,91275.0,0.0403]
[1764504910460,0.02328,91276.0,91275.0,0.0403]
[1764504910762,0.06035,91280.0,91279.0,0.0393]
[1764504914358,0.03492,91284.0,91283.0,0.0393]
[1764504914661,0.05721,91284.0,91283.0,0.0393]
[1764504915864,0.05821,91284.0,91283.0,0.0393]
[1764504918256,0.05821,91284.0,91283.0,0.13775285]
[1764504918968,0.05821,91284.0,91283.0,0.0393]
[1764504920858,0.001,91284.0,91283.0,0.0393]
[1764504921767,0.001,91284.0,91283.0,0.17726061]
[1764504922364,0.001,91284.0,91283.0,0.0393]
[1764504926269,0.001,91284.0,91283.0,0.17726061]
[1764504926565,0.04081,91292.0,91288.0,0.0393]
[1764504928676,0.04081,91292.0,91288.0,0.1392715]
[1764504928871,0.04081,91292.0,91288.0,0.0393]
[1764504929267,0.04081,91292.0,91288.0,0.17691776]
[1764504929879,0.04081,91292.0,91288.0,0.0393]
[1764504930066,0.01327,91315.0,91288.0,0.0393]
[1764504932277,0.01327,91315.0,91288.0,0.17682688]
[1764504932979,0.05898,91310.0,91309.0,0.0393]
[1764504933179,0.05843,91315.0,91314.0,0.03908]
[1764504934270,0.05843,91315.0,91314.0,0.11759537]
[1764504935781,0.05843,91315.0,91314.0,0.03908]
[1764504936278,0.04516,91315.0,91314.0,0.03908]
[1764504936674,0.02255,91315.0,91314.0,0.03908]
[1764504937272,0.04516,91315.0,91314.0,0.03908]
[1764504937881,0.05843,91315.0,91314.0,0.03908]
[1764504939474,0.05843,91315.0,91314.0,0.01954]
[1764504939674,0.04516,91307.0,91306.0,0.13731173]
[1764504941286,0.04516,91307.0,91306.0,0.13931173]
[1764504943280,0.04516,91307.0,91306.0,0.22582552]
[1764504943488,0.04516,91307.0,91306.0,0.11977173]
[1764504943689,0.04516,91307.0,91306.0,0.002]
[1764504944088,0.01327,91310.0,91287.0,0.13752688]
[1764504944089,0.04615,91297.0,91287.0,0.13752688]
[1764504944284,0.04615,91288.0,91287.0,0.26860832]
[1764504944591,0.04615,91288.0,91287.0,0.13108144]
[1764504945290,0.04615,91288.0,91287.0,0.13808144]
[1764504945491,0.04731433,91297.0,91296.0,0.04384]
[1764504947289,0.04631433,91297.0,91296.0,0.04384]
[1764504947687,0.04615,91288.0,91287.0,0.13708144]
[1764504947890,0.04615,91288.0,91287.0,0.13108144]
[1764504948491,0.04615,91288.0,91287.0,0.22931317]
[1764504948790,0.04615,91288.0,91287.0,0.04384]
[1764504949388,0.04615,91288.0,91287.0,0.14307173]
[1764504949589,0.04615,91288.0,91287.0,0.04484]
[1764504950097,0.04715,91288.0,91287.0,0.05084]
[1764504950592,0.04615,91288.0,91287.0,0.04484]
[1764504950896,0.04715,91288.0,91287.0,0.007]
[1764504951390,0.04615,91288.0,91287.0,0.004]
[1764504951897,0.04615,91288.0,91287.0,0.04784]
[1764504952088,0.04615,91288.0,91287.0,0.04684]
[1764504952993,0.04615,91288.0,91287.0,0.04384]
[1764504953196,0.04615,91288.0,91287.0,0.04684]
[1764504953900,0.04615,91288.0,91287.0,0.04784]
[1764504954683,0.04715,91288.0,91287.0,0.05084]
[1764504955201,0.04715,91288.0,91287.0,0.04984]
[1764504955393,0.04715,91288.0,91287.0,0.05084]
[1764504958204,0.04715,91288.0,91287.0,0.04984]
[1764504959303,0.04615,91288.0,91287.0,0.04784]
[1764504960699,0.00016433,91297.0,91296.0,0.04384]
[1764504960891,0.05921,91320.0,91319.0,0.04384]
[1764504961097,0.05921,91320.0,91319.0,0.14205485]
[1764504961400,0.02337375,91326.0,91325.0,0.04384]
[1764504961590,0.04615,91319.0,91318.0,0.04384]
[1764504962207,0.04615,91311.0,91310.0,0.15856688]
[1764504962403,0.04615,91311.0,91310.0,0.18136688]
[1764504962596,0.04615,91311.0,91310.0,0.04384]
[1764504963401,0.0231,91311.0,91310.0,0.04384]
[1764504963601,0.05921,91320.0,91319.0,0.04384]
[1764504964397,0.04615,91320.0,91319.0,0.04384]
[1764504964894,0.04615,91314.0,91313.0,0.14194497]
[1764504965499,0.04615,91314.0,91313.0,0.04384]
[1764504966292,0.04715,91314.0,91313.0,0.14194497]
[1764504966491,0.04715,91314.0,91313.0,0.04384]
[1764504968607,0.04715,91314.0,91313.0,0.14194497]
[1764504969100,0.04715,91314.0,91313.0,0.04384]
[1764504972006,0.06021,91314.0,91313.0,0.04384]
[1764504984415,0.06021,91314.0,91313.0,0.14194497]
[1764504984615,0.001,91314.0,91313.0,0.14194497]
[1764504984818,0.001,91314.0,91313.0,0.04384]
[1764504986307,0.001,91314.0,91313.0,0.1438115]
[1764504986507,0.001,91314.0,91313.0,0.04384]
[1764504987016,0.001,91314.0,91313.0,0.18136688]
[1764504987216,0.03299,91323.0,91322.0,0.04443]
[1764504987514,0.00027375,91326.0,91325.0,0.04443]
[1764504988915,0.00027375,91326.0,91325.0,0.14266669]
[1764504989308,0.00427375,91326.0,91325.0,0.14266669]
[1764504989509,0.00427375,91326.0,91325.0,0.04443]
[1764504991216,3.75e-06,91326.0,91325.0,0.04443]
[1764504992420,0.07983,91334.0,91333.0,0.04443]
[1764504992618,0.07983,91334.0,91333.0,0.21703]
[1764504993119,0.05839,91334.0,91333.0,0.21703]
[1764504993908,0.03574,91334.0,91333.0,0.21703]
[1764504994107,0.07983,91334.0,91333.0,0.21703]
[1764504994927,0.04509,91334.0,91333.0,0.21703]
[1764504995304,0.001,91334.0,91333.0,0.21703]
[1764504995919,0.001,91334.0,91333.0,0.30362321]
[1764504996812,0.001,91334.0,91333.0,0.4018156]
[1764504997013,0.001,91334.0,91333.0,0.30362321]
[1764504997421,0.001,91334.0,91333.0,0.40170541]
[1764504997817,0.05752,91350.0,91349.0,0.04443]
[1764504998123,0.04409,91350.0,91349.0,0.04443]
[1764504999113,0.04609,91350.0,91349.0,0.04443]
[1764505000129,0.04609,91350.0,91349.0,0.05547873]
[1764505000429,0.04609,91350.0,91349.0,0.13388659]
[1764505001630,0.05952,91350.0,91349.0,0.13388659]
[1764505002029,0.04609,91350.0,91349.0,0.13388659]
[1764505003031,0.04609,91350.0,91349.0,0.05547873]
[1764505017048,0.02465,91350.0,91349.0,0.05547873]
[1764505018454,0.04752,91350.0,91349.0,0.05547873]
[1764505019348,0.002,91350.0,91349.0,0.05547873]
[1764505019544,0.07725,91359.0,91358.0,0.04538]
[1764505019844,0.07725,91359.0,91358.0,0.2179]
[1764505020049,0.04419,91359.0,91358.0,0.19531]
[1764505020240,0.04419,91359.0,91358.0,0.17252]
[1764505020652,0.04619,91359.0,91358.0,0.17252]
[1764505021549,0.04419,91359.0,91358.0,0.17252]
[1764505021752,0.04619,91359.0,91358.0,0.17252]
[1764505022551,0.04619,91359.0,91358.0,0.19531]
[1764505024551,0.04619,91359.0,91358.0,0.2179]
[1764505027857,0.02332,91359.0,91358.0,0.2179]
[1764505028059,0.002,91359.0,91358.0,0.2179]
[1764505029046,0.03418,91367.0,91365.0,0.05652]
[1764505029555,0.01299,91384.0,91365.0,0.05652]
[1764505030156,0.01299,91384.0,91365.0,0.1564915]
[1764505030345,0.01299,91384.0,91365.0,0.29362605]
[1764505030556,0.05718,91384.0,91383.0,0.04538]
[1764505030754,0.05718,91384.0,91383.0,0.17826]
[1764505030950,0.04419,91384.0,91383.0,0.17826]
[1764505032054,0.02132,91384.0,91383.0,0.17826]
[1764505032254,0.04719,91384.0,91383.0,0.17826]
[1764505033654,0.003,91384.0,91383.0,0.17826]
[1764505034051,0.003,91384.0,91383.0,0.27620384]
[1764505034458,0.003,91384.0,91383.0,0.17826]
[1764505034858,0.003,91384.0,91383.0,0.27620384]
[1764505035059,0.04731,91384.0,91383.0,0.21286]
[1764505035257,0.04731,91384.0,91383.0,0.04538]
[1764505035452,0.04531,91384.0,91383.0,0.22186]
[1764505035759,0.04531,91384.0,91383.0,0.04938]
[1764505035947,0.04531,91384.0,91383.0,0.2219]
[1764505037057,0.04531,91384.0,91383.0,0.004]
[1764505038560,0.04531,91384.0,91383.0,0.0255]
[1764505038762,0.04531,91384.0,91383.0,0.004]
[1764505039865,0.04531,91384.0,91383.0,0.10541228]
[1764505040061,0.04531,91384.0,91383.0,0.04679]
[1764505040365,0.04531,91384.0,91383.0,0.10541228]
[1764505041663,0.04531,91384.0,91383.0,0.04679]
[1764505049967,0.04531,91384.0,91383.0,0.004]
[1764505051181,0.04327,91379.0,91378.0,0.1420714]
[1764505052275,0.04327,91375.0,91374.0,0.00016423]
[1764505052474,0.05641,91362.0,91361.0,0.13713455]
[1764505052676,0.04327,91352.0,91351.0,0.18149455]
[1764505053071,0.04327,91352.0,91351.0,0.04436]
[1764505054083,0.04327,91352.0,91351.0,0.04536]
[1764505054382,0.04327,91352.0,91351.0,0.001]
[1764505054582,0.04327,91352.0,91351.0,0.011]
[1764505057789,0.04327,91352.0,91351.0,0.05536]
[1764505058185,0.0434339,91361.0,91360.0,0.04436]
[1764505058879,0.0001639,91361.0,91360.0,0.04436]
[1764505059681,0.0219439,91361.0,91360.0,0.04536]
[1764505059977,0.0219439,91361.0,91360.0,0.05236]
[1764505060690,0.0434339,91361.0,91360.0,0.05236]
[1764505063691,0.0434339,91361.0,91360.0,0.008]
[1764505069399,0.0434339,91361.0,91360.0,0.08625669]
[1764505070598,0.0434339,91361.0,91360.0,0.008]
[1764505073598,0.05903,91350.0,91349.0,0.01116856]
[1764505074707,0.04542,91350.0,91349.0,0.05614856]
[1764505075804,0.04542,91350.0,91349.0,0.14240525]
[1764505078001,0.0455839,91361.0,91360.0,0.04398]
[1764505079201,0.0455839,91361.0,91360.0,0.04798]
[1764505080606,0.0455839,91361.0,91360.0,0.004]
[1764505080803,0.0455839,91361.0,91360.0,0.04798]
[1764505081003,0.0001639,91361.0,91360.0,0.12627947]
[1764505081212,0.0001639,91361.0,91360.0,0.04798]
[1764505082504,0.0001639,91361.0,91360.0,0.13392618]
[1764505082707,0.0001639,91361.0,91360.0,0.04798]
[1764505083705,0.0455839,91361.0,91360.0,0.004]
[1764505085412,0.0455839,91361.0,91360.0,0.0269]
[1764505085912,0.0455839,91361.0,91360.0,0.004]
[1764505087416,0.0455839,91361.0,91360.0,0.04798]
[1764505088015,0.0455839,91361.0,91360.0,0.0269]
[1764505088515,0.0455839,91361.0,91360.0,0.04798]
[1764505089015,0.0455839,91361.0,91360.0,0.0269]
[1764505091208,0.0455839,91361.0,91360.0,0.04798]
[1764505091410,0.0455839,91361.0,91360.0,0.004]
[1764505096116,0.0455839,91361.0,91360.0,0.003]
[1764505096313,0.04555,91351.0,91350.0,0.05883782]
[1764505096714,0.01009187,91351.0,91342.0,0.00016423]
[1764505096915,0.01009187,91351.0,91330.0,0.07835959]
[1764505097219,9.187e-05,91351.0,91329.0,0.09191959]
[1764505097414,9.187e-05,91351.0,91329.0,0.11513959]
[1764505097724,9.187e-05,91351.0,91350.0,0.002]
[1764505097924,9.187e-05,91351.0,91350.0,0.00026935]
[1764505098110,0.00209187,91351.0,91349.0,0.01089375]
[1764505098318,0.00209187,91351.0,91341.0,0.00016423]
[1764505099016,0.00209187,91351.0,91342.0,0.001]
[1764505099216,0.00209187,91351.0,91342.0,0.01210673]
[1764505099416,0.00209187,91351.0,91342.0,0.001]
[1764505099717,0.00109187,91351.0,91341.0,0.00016423]
[1764505100024,0.01109187,91351.0,91350.0,0.001]
[1764505100422,0.00809187,91351.0,91342.0,0.001]
[1764505100620,0.00909187,91351.0,91342.0,0.01173181]
[1764505100925,0.00909187,91351.0,91342.0,0.01073181]
[1764505101224,0.00909187,91351.0,91341.0,0.00116423]
[1764505101419,0.00109187,91351.0,91341.0,0.00016423]
[1764505101617,0.00909187,91351.0,91342.0,0.001]
[1764505103528,0.00909187,91351.0,91350.0,0.01362]
[1764505103728,0.00909187,91351.0,91350.0,0.05678]
[1764505104129,0.00109187,91351.0,91350.0,0.05678]
[1764505104328,0.01009187,91351.0,91350.0,0.03536]
[1764505104625,0.01009187,91351.0,91343.0,0.05678]
[1764505104823,0.01209187,91351.0,91350.0,0.001]
[1764505105621,0.01109187,91351.0,91350.0,0.001]
[1764505106126,9.187e-05,91351.0,91343.0,0.05678]
[1764505106431,0.00709187,91351.0,91350.0,0.001]
[1764505106734,0.00109187,91351.0,91343.0,0.05678]
[1764505107026,0.01209187,91351.0,91350.0,0.001]
[1764505107428,0.00609187,91351.0,91343.0,0.05678]
[1764505107625,0.00609187,91351.0,91342.0,0.01089343]
[1764505107929,9.187e-05,91351.0,91341.0,0.00016423]
[1764505108126,0.00909187,91351.0,91343.0,0.001]
[1764505108833,0.00909187,91351.0,91343.0,0.03636]
[1764505109337,9.187e-05,91351.0,91343.0,0.01362]
[1764505109530,0.00609187,91351.0,91343.0,0.05678]
[1764505110141,0.01009187,91351.0,91343.0,0.05778]
[1764505110530,0.00109187,91351.0,91342.0,0.01082007]
[1764505110730,0.00109187,91351.0,91341.0,0.00016423]
[1764505110731,0.12574134,91350.0,91341.0,0.00016423]
[1764505110936,0.57574134,91350.0,91326.0,0.00027375]
[1764505111632,0.02296633,91349.0,91326.0,0.00027375]
[1764505111934,0.14783041,91348.0,91328.0,0.00016423]
[1764505112136,0.02296646,91347.0,91343.0,0.001]
[1764505112430,0.12495493,91346.0,91328.0,0.00016423]
[1764505112630,0.53495493,91346.0,91328.0,0.00016423]
[1764505114036,0.54495493,91346.0,91329.0,0.01362]
[1764505114228,0.54495493,91346.0,91329.0,0.05678]
[1764505114624,0.54595493,91346.0,91329.0,0.05678]
[1764505115337,0.53595493,91346.0,91329.0,0.05678]
[1764505115529,0.54595493,91346.0,91329.0,0.05778]
[1764505115940,0.53595493,91346.0,91329.0,0.05678]
[1764505116135,0.54695493,91346.0,91329.0,0.05778]
[1764505116432,0.54695493,91346.0,91329.0,0.001]
[1764505116737,0.02296836,91345.0,91329.0,0.001]
[1764505116937,0.41,91345.0,91329.0,0.001]
[1764505117139,0.14592013,91344.0,91329.0,0.001]
[1764505117340,0.552951,91344.0,91329.0,0.001]
[1764505118138,0.552951,91344.0,91328.0,0.00016423]
[1764505118437,0.02297178,91343.0,91329.0,0.001]
[1764505118641,0.39,91343.0,91329.0,0.001]
[1764505118942,0.12128035,91342.0,91329.0,0.001]
[1764505119144,0.51128035,91342.0,91329.0,0.001]
[1764505119436,0.39,91342.0,91329.0,0.001]
[1764505119641,0.00999999,91340.0,91329.0,0.001]
[1764505119835,0.0229757,91339.0,91329.0,0.001]
[1764505120035,0.50924485,91339.0,91329.0,0.001]
[1764505120340,0.0229757,91338.0,91329.0,0.001]
[1764505120541,0.3929757,91338.0,91329.0,0.001]
[1764505120746,0.14982605,91337.0,91329.0,0.001]
[1764505121044,0.0229757,91336.0,91329.0,0.001]
[1764505121232,0.3929757,91336.0,91329.0,0.001]
[1764505121428,0.14982605,91335.0,91328.0,0.00016423]
[1764505121727,0.0229757,91334.0,91329.0,0.001]
[1764505121928,0.4329757,91334.0,91329.0,0.001]
[1764505122144,0.14293272,91333.0,91329.0,0.001]
[1764505122346,0.00012425,91332.0,91329.0,0.001]
[1764505122643,0.12334722,91331.0,91328.0,0.00016423]
[1764505122844,0.49334722,91331.0,91329.0,0.001]
[1764505124137,0.49434722,91331.0,91329.0,0.001]
[1764505124840,0.49434722,91331.0,91328.0,0.00016423]
[1764505125040,0.50634722,91331.0,91329.0,0.001]
[1764505125242,0.023155,91330.0,91329.0,0.001]
[1764505125440,0.433155,91330.0,91329.0,0.001]
[1764505125644,0.55202398,91330.0,91329.0,0.001]
[1764505125944,0.58185398,91330.0,91328.0,0.00016423]
[1764505126150,0.55869898,91330.0,91328.0,0.00116423]
[1764505127542,0.55869898,91330.0,91328.0,0.00016423]
[1764505127846,0.57169898,91330.0,91329.0,0.001]
[1764505128040,0.59485626,91330.0,91329.0,0.001]
[1764505128241,0.59385626,91330.0,91328.0,0.00116423]
[1764505128439,0.57069898,91330.0,91328.0,0.00116423]
[1764505129643,0.22069898,91330.0,91328.0,0.02350423]
[1764505130244,0.21969898,91330.0,91328.0,0.00116423]
[1764505130543,0.22069898,91330.0,91328.0,0.00116423]
[1764505131037,0.21969898,91330.0,91328.0,0.00116423]
[1764505131234,0.22069898,91330.0,91328.0,0.00116423]
[1764505133252,0.02316453,91329.0,91328.0,0.00116423]
[1764505133452,0.07316453,91329.0,91328.0,0.00116423]
[1764505133751,0.19146705,91329.0,91328.0,0.00116423]
[1764505134342,0.20246705,91329.0,91328.0,0.00116423]
[1764505134546,0.20346705,91329.0,91328.0,0.00116423]
[1764505135050,0.20346705,91329.0,91328.0,0.02350423]
[1764505137746,0.20346705,91329.0,91328.0,0.04457423]
[1764505137953,0.012,91329.0,91328.0,0.04457423]
[1764505138355,0.03518959,91329.0,91328.0,0.04457423]
[1764505140650,0.03521132,91329.0,91328.0,0.04457423]
[1764505146874,0.03522665,91329.0,91328.0,0.04457423]
[1764505148372,0.03522665,91329.0,91328.0,0.02350423]
[1764505148568,0.03522665,91329.0,91328.0,0.04457423]
[1764505155382,0.04522665,91329.0,91328.0,0.04457423]
[1764505155582,0.03522665,91329.0,91328.0,0.04457423]
[1764505157584,0.13522665,91329.0,91328.0,0.04457423]
[1764505158485,0.53155624,91329.0,91328.0,0.00116423]
[1764505161685,0.53155624,91329.0,91328.0,0.02371423]
[1764505162581,0.53155624,91329.0,91328.0,0.00116423]
[1764505167093,0.53155624,91329.0,91328.0,0.02426423]
[1764505167485,0.53155624,91329.0,91328.0,0.00116423]
[1764505168189,0.53155624,91329.0,91328.0,0.00016423]
[1764505169382,0.53155624,91329.0,91326.0,0.00027375]
[1764505169586,0.02322665,91328.0,91326.0,0.02337375]
[1764505169789,0.40322665,91328.0,91326.0,0.02337375]
[1764505170093,0.14684966,91327.0,91326.0,0.02337375]
[1764505170293,0.53684966,91327.0,91326.0,0.02337375]
[1764505170495,0.53684966,91327.0,91326.0,0.00027375]
[1764505171391,0.53684966,91327.0,91326.0,0.00127375]